[Event "CCT Chessable Masters Playin Match 2025"]
[Site "Online"]
[Date "2025.02.17"]
[Round "1.3"]
[White "Artemiev, Vladislav"]
[Black "Lazavik, Denis"]
[Result "1-0"]
[Annotator "TA"]
[ECO "A29"]
[WhiteElo "2691"]
[BlackElo "2572"]
[PlyCount "171"]
[EventDate "2025.02.13"]
[EventType "k.o."]
[EventCountry "NET"]
[SourceTitle "playchess.com"]
[Source "ChessBase"]
[SourceQuality "1"]
[TimeControl "600"]

{[%evp 10,171,0,3,15,0,0,-9,1,-7,3,0,0,6,3,0,0,0,-6,-5,0,0,0,0,27,0,9,10,18,3,2,0,10,-8,18,0,7,-12,6,-6,0,0,21,19,21,-25,-27,-15,0,0,0,0,9,0,0,0,0,-16,37,0,0,0,0,0,0,0,81,91,93,93,93,91,77,66,66,66,66,52,55,59,79,68,82,50,73,59,59,59,59,49,73,66,72,59,59,53,59,58,66,61,71,50,66,65,82,81,81,79,76,67,145,71,71,13,47,36,47,31,87,83,77,91,108,108,136,131,207,198,383,233,266,216,531,373,690,351,719,746,695,552,716,693,827,739,1022,1000,1062,1032,1756,1694,1358,1300,29965,29976,29990,29991,29991,29992,29992,29991,29991,29992,29992,29993]} 1. c4 {[%emt 0:00:02]} Nf6 {[%emt 0:03:01][%cal Bg8f6,Bf6d5,Bd5b4][%mdl 32]} 2. Nc3 {[%emt 0:00:00]} e5 {[%emt 0:00:01]} 3. Nf3 {[%emt 0:00:01]} Nc6 {[%emt 0:00:01]} 4. g3 {[%emt 0:00:00]} d5 {[%emt 0:00:01]} 5. cxd5 {[%emt 0:00:00]} Nxd5 {[%emt 0:00:00]} 6. Bg2 {[%emt 0:00:01][%cal Of3e5]} Bc5 {[%emt 0:00:00] now scores much better than the old 6...Nb6. A29: English Opening: Four Knights Variation with 4 g3.} 7. Qc2 {[%emt 0:00:00][%cal Of3e5]} Ndb4 {[%emt 0:00:04]} 8. Qa4 {[%emt 0:00:02][%cal Oa2a3]} Bd7 {[%emt 0:00:02] ...Nd4 would now be deadly. The position is equal.} 9. O-O {[%emt 0:00:04]} Nd4 {[%emt 0:00:03]} 10. Qd1 {[%emt 0:00:01]} Nxf3+ {[%emt 0:00:01]} 11. Bxf3 {[%emt 0:00:00]} Nc6 {[%emt 0:00:00]} 12. d3 {[%emt 0:00:01]} O-O {[%emt 0:00:01]} 13. a3 $146 {[%emt 0:00:14]} (13. Be3 Nd4 14. Bxb7 Rb8 15. Bg2 Rxb2 16. Rb1 Qb8 17. Bxd4 Bxd4 18. Nd5 Bg4 19. Ne7+ {1-0 Nepomniachtchi,I (2784)-Giri,A (2764) Carlsen Inv Prelim rapid 2020 (3.2)}) 13... Bh3 {[%emt 0:00:08]} 14. Re1 {[%emt 0:00:01]} Qd7 {[%emt 0:00:00]} 15. b4 {[%emt 0:00:20]} Bb6 {[%emt 0:00:02]} 16. Be3 {[%emt 0:00:09] Inhibits Qd4.} Rad8 {[%emt 0:00:07]} 17. Rc1 {[%emt 0:00:04]} Nd4 {[%emt 0:00:12]} 18. Bxd4 {[%emt 0:00:04]} exd4 {[%emt 0:00:08]} 19. Ne4 {[%emt 0:00:10]} c6 {[%emt 0:00:01]} 20. a4 {[%emt 0:00:01]} a6 {[%emt 0:00:05]} 21. Qc2 {[%emt 0:00:12]} h6 {[%emt 0:00:04]} 22. Qd2 {[%emt 0:00:26]} Qe7 {[%emt 0:00:04]} 23. Rc2 {[%emt 0:00:22]} Be6 {[%emt 0:00:02]} 24. Rb1 {[%emt 0:00:09] Inhibits Bb3.} Bd5 {[%emt 0:00:03]} (24... f5 $5 25. Nc5 $8 Bd5 $11) 25. Qc1 {[%emt 0:00:05]} Rfe8 {[%emt 0:00:07]} 26. Nd2 {[%emt 0:00:04]} Bxf3 {[%emt 0:00:08]} 27. Nxf3 {[%emt 0:00:02]} (27. exf3 {is superior.} Qe6 28. Ne4) 27... Rd5 $11 {[%emt 0:00:01]} 28. Rbb2 {[%emt 0:00:03]} h5 {[%emt 0:00:02]} 29. h4 {[%emt 0:00:03]} Qd7 {[%emt 0:00:02]} 30. Kg2 {[%emt 0:00:03]} Rf5 {[%emt 0:00:03]} 31. Rd2 {[%emt 0:00:05]} Bc7 {[%emt 0:00:09]} 32. Qc4 {[%emt 0:00:04]} Rd5 {[%emt 0:00:00]} 33. Rdc2 {[%emt 0:00:06][%cal Ob4b5]} Re7 {[%emt 0:00:05]} (33... Bb6 $11) 34. Qb3 {[%emt 0:00:05]} Bb6 {[%emt 0:00:06]} 35. Qa2 {[%emt 0:00:19]} g6 {[%emt 0:00:02]} 36. Rb1 {[%emt 0:00:19]} Qd6 {[%emt 0:00:04]} 37. Qb2 {[%emt 0:00:05]} Qf6 {[%emt 0:00:02]} (37... Re8 $11 {remains equal.}) 38. e4 $16 {[%emt 0:00:03] White has strong rooks and is better} Rd8 {[%emt 0:00:06]} 39. Ng5 {[%emt 0:00:13]} Qd6 {[%emt 0:00:11]} 40. Qb3 {[%emt 0:00:06]} Kg7 {[%emt 0:00:03]} 41. Re2 {[%emt 0:00:14]} f6 {[%emt 0:00:03]} 42. Nf3 {[%emt 0:00:04]} Qd7 {[%emt 0:00:03]} 43. Rbe1 {[%emt 0:00:05]} Rde8 {[%emt 0:00:05]} 44. Qc4 {[%emt 0:00:01]} Qd6 {[%emt 0:00:02]} 45. Nd2 {[%emt 0:00:09]} Ba7 {[%emt 0:00:04]} 46. Qb3 {[%emt 0:00:13]} Qd7 {[%emt 0:00:07]} 47. Qc2 {[%emt 0:00:05]} Qg4 {[%emt 0:00:06]} 48. Nf3 {[%emt 0:00:04]} Qd7 {[%emt 0:00:01]} 49. Rb1 {[%emt 0:00:01][%cal Ob4b5]} Re6 {[%emt 0:00:05]} 50. Qc4 {[%emt 0:00:06]} Bb6 {[%emt 0:00:00]} 51. Qb3 {[%emt 0:00:03]} R6e7 {[%emt 0:00:02]} 52. Nd2 {[%emt 0:00:02]} Qg4 {[%emt 0:00:05]} 53. Ree1 {[%emt 0:00:06]} Bc7 {[%emt 0:00:02]} 54. Nf3 {[%emt 0:00:08]} Qd7 {[%emt 0:00:01]} 55. b5 {[%emt 0:00:04]} cxb5 {[%emt 0:00:08]} 56. axb5 {[%emt 0:00:00] White plays on the queen side and is better} Ba5 {[%emt 0:00:00]} 57. Re2 {[%emt 0:00:14]} Bc3 {[%emt 0:00:01]} 58. bxa6 {[%emt 0:00:02]} bxa6 {[%emt 0:00:00]} 59. Ra2 {[%emt 0:00:11]} Qc6 {[%emt 0:00:01]} (59... a5 $14) 60. Rc1 {[%emt 0:00:09]} (60. Ra4 $142) 60... Qd6 {[%emt 0:00:16]} 61. Nd2 {[%emt 0:00:04]} (61. Ng1 $16) 61... a5 {[%emt 0:00:19]} 62. Nc4 {[%emt 0:00:09][%csl LRd6,Oa5] White attacks a weakness} Qa6 {[%emt 0:00:02]} 63. Qa3 {[%emt 0:00:20][%cal Oc1b1]} Ra7 {[%emt 0:00:14]} (63... Qb5 $14) 64. Rb1 $1 {[%emt 0:00:01][%cal Bc1b1,Bb1b6,Bb6f6][%mdl 32] Rb6 is the strong threat. Black is now going downhill.} Qe6 {[%emt 0:00:01]} 65. Rb6 {[%emt 0:00:10]} Qe7 {[%emt 0:00:00]} 66. Qb3 {[%emt 0:00:08]} Bb4 {[%emt 0:00:01]} 67. Qa4 $1 {[%emt 0:00:09] White is more active.} Rea8 {[%emt 0:00:28] [#]} (67... Bc3 $16 68. Qb5 Rc8) 68. e5 $1 $18 {[%emt 0:00:06]} Kg8 $2 {[%emt 0:00:55]} (68... f5 {is a better defense.} 69. Qb5 (69. Qc6 Qf7 $18) 69... Kh6) 69. Rxf6 {[%emt 0:00:08]} Qb7+ {[%emt 0:00:01]} 70. Kg1 {[%emt 0:00:05]} Rf8 $2 {[%emt 0:00:02]} (70... Kh7 {is a better chance.} 71. Re2 Rf8) 71. Rxg6+ {[%emt 0:00:03]} Kh8 $2 {[%emt 0:00:07]} (71... Kh7) 72. Rb6 {[%emt 0:00:34]} Qf3 {[%emt 0:00:02]} 73. Rxb4 {[%emt 0:00:05]} Rg7 {[%emt 0:00:01][%cal Ba7g7,Bg7g4,Bg4g6][%mdl 32] [#]} 74. Rb1 $1 {[%emt 0:00:05]} (74. Nxa5 Rxg3+ 75. fxg3 Qxg3+ 76. Rg2 Qe3+ 77. Kh2 Qxe5+ 78. Kg1 Qe1+ 79. Kh2 Qxh4+ 80. Kg1 Qe1+ 81. Kh2 Qh4+ 82. Kg1 Qe1+ 83. Kh2 Qh4+ $11) 74... Qxd3 {[%emt 0:00:07]} 75. Qc2 {[%emt 0:00:16]} Qf3 {[%emt 0:00:05]} 76. Qe2 {[%emt 0:00:03]} Qf5 {[%emt 0:00:01]} 77. Rd1 {[%emt 0:00:10]} Rfg8 {[%emt 0:00:01]} 78. Ra3 {[%emt 0:00:04]} (78. Nxa5 Rxg3+ 79. fxg3 Rxg3+ 80. Kh1 d3 $18) 78... Rg4 {[%emt 0:00:14]} 79. Nd6 {[%emt 0:00:05][%cal Bc4d6,Bd6f5,Bf5h6,Bh6g8,Bg8f6][%mdl 32]} ({Inferior is} 79. Rxa5 Rxg3+ 80. fxg3 Rxg3+ 81. Kh1 d3 82. Ra8+ Kh7 83. Ra7+ Kh8 84. Ra8+ Kh7 85. Ra7+ Kh8 86. Ra8+ $11) 79... Qe6 {[%emt 0:00:04]} 80. Qf3 {[%emt 0:00:02]} R4g6 {[%emt 0:00:06]} 81. Qxh5+ {[%emt 0:00:02] White mates.} Kg7 {[%emt 0:00:01]} 82. Rxa5 {[%emt 0:00:05]} Qd7 {[%emt 0:00:07]} 83. Nf5+ {[%emt 0:00:04]} Kf7 {[%emt 0:00:05]} 84. Nh6+ {[%emt 0:00:01]} Kg7 {[%emt 0:00:03]} 85. Nxg8 {[%emt 0:00:00]} d3 {[%emt 0:00:10]} 86. Nf6 {[%emt 0:00:02] Weighted Error Value: White=0.08 (flawless) /Black=0.11 (very precise)   Mistake:       	White=3     	Black=8      Inaccurate:     	White=5     	Black=3      OK:         	White=23    	Black=20     Best:        	White=1     	Black=2      Strong:       	White=2     	---} 1-0

[Event "CCT Chessable Masters Playin Match 2025"]
[Site "Online"]
[Date "2025.02.17"]
[Round "1.3"]
[White "Sadhwani, Raunak"]
[Black "Grischuk, Alexander"]
[Result "0-1"]
[Annotator "TA"]
[ECO "D35"]
[WhiteElo "2666"]
[BlackElo "2687"]
[PlyCount "66"]
[EventDate "2025.02.13"]
[EventType "k.o."]
[EventCountry "NET"]
[SourceTitle "playchess.com"]
[Source "ChessBase"]
[SourceQuality "1"]
[TimeControl "600"]

{[%evp 15,66,14,12,12,7,15,14,22,21,12,32,35,42,8,6,0,11,25,5,12,14,10,6,0,0,0,11,0,0,-7,0,0,0,0,0,-29,-25,-151,-83,-78,-43,-167,-159,-349,-338,-352,-344,-339,-219,-224,-216,-766,-755]} 1. c4 {[%emt 0:00:00]} e6 {[%emt 0:02:41]} 2. Nc3 {[%emt 0:00:01]} d5 {[%emt 0:00:00]} 3. d4 {[%emt 0:00:00]} Be7 {[%emt 0:00:01]} 4. cxd5 {[%emt 0:00:01]} exd5 {[%emt 0:00:00]} 5. Bf4 {[%emt 0:00:00]} Nf6 {[%emt 0:00:01]} 6. e3 {[%emt 0:00:01]} Bf5 {[%emt 0:00:01]} 7. Nge2 {[%emt 0:00:00]} O-O {[%emt 0:00:03]} 8. Ng3 {[%emt 0:00:01]} Be6 {[%emt 0:00:04]} 9. Bd3 {[%emt 0:00:01] D35: Queen's Gambit Declined: Exchange Variation.} c5 {[%emt 0:00:01]} 10. dxc5 {[%emt 0:00:07]} Bxc5 {[%emt 0:00:03]} 11. O-O {[%emt 0:00:00] The position is equal.} Nc6 {[%emt 0:00:01]} 12. Rc1 {[%emt 0:00:02]} Bd6 {[%emt 0:00:07]} 13. Bxd6 {[%emt 0:00:07]} Qxd6 {[%emt 0:00:00]} 14. Nb5 $146 {[%emt 0:00:01]} (14. Qa4 a6 15. Rfd1 Rfd8 16. a3 Rac8 17. Qh4 Ne5 18. h3 h6 19. Nh5 Nxh5 20. Qxh5 Nxd3 21. Rxd3 {½-½ Touzane,O (2382)-Shchekachev,A (2503) Montpellier op 7th 2000 (6)}) 14... Qe5 {[%emt 0:00:20]} 15. Qd2 {[%emt 0:00:21]} Rad8 {[%emt 0:00:04] [#]} 16. Nd4 $1 {[%emt 0:00:13]} Nxd4 {[%emt 0:00:06]} 17. exd4 {[%emt 0:00:00]} Qd6 {[%emt 0:00:01]} 18. f3 {[%emt 0:00:07]} h6 {[%emt 0:00:06] The position is symmetric and equal} 19. Kh1 {[%emt 0:00:01]} Rfe8 {[%emt 0:00:02]} 20. Ne2 {[%emt 0:00:01]} Bd7 {[%emt 0:00:05]} 21. g4 {[%emt 0:00:21]} Nh7 {[%emt 0:00:21]} 22. Nf4 {[%emt 0:00:26]} Ng5 {[%emt 0:00:06]} 23. Kg2 {[%emt 0:00:01]} Re7 {[%emt 0:00:04]} 24. h4 {[%emt 0:00:02]} Ne6 {[%emt 0:00:03]} 25. Ne2 {[%emt 0:00:01]} Rde8 {[%emt 0:00:06]} 26. f4 {[%emt 0:00:44] [#]} (26. Rf2 $11) 26... Nf8 {[%emt 0:00:16] Black has strong rooks and is better} (26... Nd8 $142 $1 {[%cal Rd8c6] And now ...Nc6! would win.} 27. f5 Nc6) 27. f5 $17 {[%emt 0:00:05]} Re3 {[%emt 0:00:04] Black attacks} 28. Nf4 {[%emt 0:00:16]} (28. Rf3 $1 $15 Rxf3 29. Kxf3) 28... Qf6 $36 {[%emt 0:00:18][%csl LRd4,LRh4][%mdl 2048] Black has strong initiative.} 29. Qf2 {[%emt 0:00:01] White does not recover from this.} (29. Nxd5 $2 Bc6 (29... Qxh4 $2 {too greedy.} 30. Nxe3 Bc6+ 31. d5 $18) 30. Rxc6 Qxc6 $19) ({Avoid the trap} 29. Ne6 $2 Rxd3 30. Qxd3 fxe6 $19) (29. Rf3 $17 {keeps fighting.} Rxf3 (29... Qxd4 30. Qf2 $17) 30. Kxf3) 29... Qxd4 {[%emt 0:00:07]} 30. Rcd1 {[%emt 0:00:04]} Qe5 {[%emt 0:00:09]} 31. Kg1 {[%emt 0:00:07]} Nh7 {[%emt 0:00:33]} 32. Ng2 {[%emt 0:00:22]} Qg3 {[%emt 0:00:07]} 33. Qf4 $2 {[%emt 0:00:19]} (33. Qxg3 Rxg3 34. Rf4) 33... Rxd3 {[%emt 0:00:15] Weighted Error Value: White=0.46/Black=0.10 (very precise)   Loses game:     	White=1     	---        Mistake:       	White=3     	Black=1      Inaccurate:     	White=2     	Black=2      OK:         	White=6     	Black=9      Best:        	White=2     	Black=2} 0-1